[Event "Titled Tuesday Blitz November 29 Early 2022"]
[White "Jobava, Baadur"]
[Black "Averjanov, Alexey"]
[WhiteFideId "13601520"]
[BlackFideId "14109867"]
[WhiteElo "2582"]
[BlackElo "2625"]
[Result "1-0"]
[Round "03"]
[TimeControl "180+1"]
[Date "2022.11.30"]
[WhiteClock "0:00:29"]
[BlackClock "0:00:11"]

1. e4 {[%clk 0:02:46]}  c6 {[%clk 0:02:58]} 2. d4 {[%clk 0:02:45]}  d5 {[%clk 0:02:58]} 3. exd5 {[%clk 0:02:46]}  cxd5 {[%clk 0:02:58]} 4. c4 {[%clk 0:02:46]}  Nf6 {[%clk 0:02:58]} 5. Nc3 {[%clk 0:02:47]}  e6 {[%clk 0:02:58]} 6. Nf3 {[%clk 0:02:47]}  Be7 {[%clk 0:02:58]} 7. c5 {[%clk 0:02:47]}  O-O {[%clk 0:02:58]} 8. Rb1 {[%clk 0:02:47]}  b6 {[%clk 0:02:57]} 9. b4 {[%clk 0:02:47]}  a5 {[%clk 0:02:57]} 10. a3 {[%clk 0:02:48]}  axb4 {[%clk 0:02:57]} 11. axb4 {[%clk 0:02:49]}  bxc5 {[%clk 0:02:57]} 12. bxc5 {[%clk 0:02:50]}  Nc6 {[%clk 0:02:57]} 13. Bb5 {[%clk 0:02:49]}  Bd7 {[%clk 0:02:57]} 14. O-O {[%clk 0:02:49]}  Ne4 {[%clk 0:02:56]} 15. Ne2 {[%clk 0:02:48]}  f5 {[%clk 0:02:43]} 16. Bxc6 {[%clk 0:02:27]}  Bxc6 {[%clk 0:02:43]} 17. Ne5 {[%clk 0:02:28]}  Qc8 {[%clk 0:02:28]} 18. f3 {[%clk 0:02:24]}  Nf6 {[%clk 0:02:25]} 19. Nxc6 {[%clk 0:02:17]}  Qxc6 {[%clk 0:02:25]} 20. Rb6 {[%clk 0:02:17]}  Qd7 {[%clk 0:02:22]} 21. Bf4 {[%clk 0:02:12]}  Rfc8 {[%clk 0:02:14]} 22. Qb3 {[%clk 0:01:56]}  Ne8 {[%clk 0:02:06]} 23. Rb7 {[%clk 0:01:47]}  Qd8 {[%clk 0:02:03]} 24. Qe3 {[%clk 0:01:47]}  Rc6 {[%clk 0:01:57]} 25. Rfb1 {[%clk 0:01:47]}  Rac8 {[%clk 0:01:52]} 26. Nc1 {[%clk 0:01:32]}  g5 {[%clk 0:01:43]} 27. Be5 {[%clk 0:01:32]}  Bf6 {[%clk 0:01:36]} 28. Nd3 {[%clk 0:01:31]}  Bxe5 {[%clk 0:01:30]} 29. Nxe5 {[%clk 0:01:31]}  R6c7 {[%clk 0:01:30]} 30. R7b6 {[%clk 0:01:22]}  Qf6 {[%clk 0:01:28]} 31. Re1 {[%clk 0:01:16]}  Ng7 {[%clk 0:01:20]} 32. f4 {[%clk 0:01:07]}  g4 {[%clk 0:01:11]} 33. Reb1 {[%clk 0:01:01]}  Qe7 {[%clk 0:01:08]} 34. Rb8 {[%clk 0:00:54]}  Ne8 {[%clk 0:01:06]} 35. R1b6 {[%clk 0:00:49]}  Nf6 {[%clk 0:01:00]} 36. Qa3 {[%clk 0:00:40]}  Ne4 {[%clk 0:00:55]} 37. Qa8 {[%clk 0:00:37]}  Rxb8 {[%clk 0:00:44]} 38. Rxb8+ {[%clk 0:00:37]}  Kg7 {[%clk 0:00:44]} 39. Rg8+ {[%clk 0:00:35]}  Kh6 {[%clk 0:00:44]} 40. Re8 {[%clk 0:00:32]}  Ra7 {[%clk 0:00:34]} 41. Rxe7 {[%clk 0:00:26]}  Rxa8 {[%clk 0:00:34]} 42. Rxe6+ {[%clk 0:00:27]}  Kg7 {[%clk 0:00:24]} 43. Kf1 {[%clk 0:00:27]}  Ra1+ {[%clk 0:00:22]} 44. Ke2 {[%clk 0:00:27]}  Ra2+ {[%clk 0:00:22]} 45. Ke3 {[%clk 0:00:23]}  Rxg2 {[%clk 0:00:19]} 46. c6 {[%clk 0:00:21]}  Rc2 {[%clk 0:00:18]} 47. Re7+ {[%clk 0:00:19]}  Kf6 {[%clk 0:00:14]} 48. Rxh7 {[%clk 0:00:19]}  Nc3 {[%clk 0:00:10]} 49. Kd3 {[%clk 0:00:18]}  Rc1 {[%clk 0:00:10]} 50. Nd7+ {[%clk 0:00:17]}  Kg6 {[%clk 0:00:09]} 51. Nf8+ {[%clk 0:00:17]}  Kf6 {[%clk 0:00:09]} 52. Kd2 {[%clk 0:00:17]}  Na2 {[%clk 0:00:09]} 53. c7 {[%clk 0:00:16]}  Rc4 {[%clk 0:00:08]} 54. Nd7+ {[%clk 0:00:16]}  Kg6 {[%clk 0:00:08]} 55. Ne5+ {[%clk 0:00:17]}  Kxh7 {[%clk 0:00:07]} 56. Nxc4 {[%clk 0:00:18]}  dxc4 {[%clk 0:00:07]} 57. c8=Q {[%clk 0:00:19]}  c3+ {[%clk 0:00:07]} 58. Kd3 {[%clk 0:00:19]}  Nb4+ {[%clk 0:00:07]} 59. Kxc3 {[%clk 0:00:19]}  Nd5+ {[%clk 0:00:07]} 60. Kd2 {[%clk 0:00:19]}  Nxf4 {[%clk 0:00:06]} 61. Qxf5+ {[%clk 0:00:19]}  Ng6 {[%clk 0:00:06]} 62. Qxg4 {[%clk 0:00:19]}  Kh6 {[%clk 0:00:06]} 63. Qxg6+ {[%clk 0:00:19]}  Kxg6 {[%clk 0:00:06]} 64. Kd3 {[%clk 0:00:20]}  Kf5 {[%clk 0:00:06]} 65. Kc4 {[%clk 0:00:21]}  Ke6 {[%clk 0:00:07]} 66. Kc5 {[%clk 0:00:21]}  Kd7 {[%clk 0:00:07]} 67. d5 {[%clk 0:00:22]}  Kc7 {[%clk 0:00:08]} 68. h4 {[%clk 0:00:23]}  Kd7 {[%clk 0:00:07]} 69. h5 {[%clk 0:00:24]}  Ke7 {[%clk 0:00:08]} 70. h6 {[%clk 0:00:24]}  Kf7 {[%clk 0:00:08]} 71. d6 {[%clk 0:00:25]}  Kg6 {[%clk 0:00:08]} 72. d7 {[%clk 0:00:26]}  Kxh6 {[%clk 0:00:09]} 73. d8=Q {[%clk 0:00:26]}  Kg6 {[%clk 0:00:09]} 74. Qd5 {[%clk 0:00:26]}  Kf6 {[%clk 0:00:09]} 75. Qe4 {[%clk 0:00:26]}  Kg5 {[%clk 0:00:09]} 76. Qf3 {[%clk 0:00:26]}  Kg6 {[%clk 0:00:10]} 77. Qf4 {[%clk 0:00:26]}  Kg7 {[%clk 0:00:10]} 78. Qf5 {[%clk 0:00:27]}  Kh6 {[%clk 0:00:10]} 79. Qg4 {[%clk 0:00:27]}  Kh7 {[%clk 0:00:11]} 80. Qg5 {[%clk 0:00:27]}  Kh8 {[%clk 0:00:11]} 81. Kd5 {[%clk 0:00:28]}  Kh7 {[%clk 0:00:10]} 82. Ke6 {[%clk 0:00:28]}  Kh8 {[%clk 0:00:11]} 83. Kf7 {[%clk 0:00:29]}  Kh7 {[%clk 0:00:11]} 84. Qh5# {[%clk 0:00:29]} 1-0


[Site "https://www.chess.com"]

[Event "Titled Tuesday Blitz November 29 Early 2022"]
[White "Kalashian, David"]
[Black "Grandelius, Nils"]
[WhiteFideId "13302418"]
[BlackFideId "1710400"]
[WhiteElo "2490"]
[BlackElo "2617"]
[Result "0-1"]
[Round "03"]
[TimeControl "180+1"]
[Date "2022.11.30"]
[WhiteClock "0:00:06"]
[BlackClock "0:00:14"]

1. d4 {[%clk 0:02:58]}  f5 {[%clk 0:02:58]} 2. Bg5 {[%clk 0:02:58]}  g6 {[%clk 0:02:57]} 3. Nc3 {[%clk 0:02:57]}  Bg7 {[%clk 0:02:57]} 4. e4 {[%clk 0:02:56]}  fxe4 {[%clk 0:02:55]} 5. Nxe4 {[%clk 0:02:57]}  d5 {[%clk 0:02:54]} 6. Nc3 {[%clk 0:02:52]}  c5 {[%clk 0:02:45]} 7. dxc5 {[%clk 0:02:47]}  d4 {[%clk 0:02:37]} 8. Ne4 {[%clk 0:02:37]}  Qd5 {[%clk 0:02:36]} 9. Bd3 {[%clk 0:02:18]}  Nc6 {[%clk 0:02:08]} 10. Nf3 {[%clk 0:02:15]}  Bf5 {[%clk 0:01:51]} 11. Qe2 {[%clk 0:02:11]}  O-O-O {[%clk 0:01:50]} 12. a3 {[%clk 0:02:02]}  Nf6 {[%clk 0:01:38]} 13. Ned2 {[%clk 0:01:31]}  Nh5 {[%clk 0:01:17]} 14. Ne4 {[%clk 0:01:01]}  Rhf8 {[%clk 0:01:12]} 15. h3 {[%clk 0:00:49]}  h6 {[%clk 0:01:12]} 16. Bd2 {[%clk 0:00:45]}  Nf6 {[%clk 0:01:13]} 17. Ng3 {[%clk 0:00:43]}  Nd7 {[%clk 0:00:55]} 18. b4 {[%clk 0:00:31]}  Nde5 {[%clk 0:00:34]} 19. Nxf5 {[%clk 0:00:24]}  gxf5 {[%clk 0:00:29]} 20. b5 {[%clk 0:00:18]}  Nxd3+ {[%clk 0:00:24]} 21. cxd3 {[%clk 0:00:17]}  Ne5 {[%clk 0:00:23]} 22. Bf4 {[%clk 0:00:16]}  Nxf3+ {[%clk 0:00:21]} 23. Qxf3 {[%clk 0:00:16]}  e5 {[%clk 0:00:20]} 24. Bh2 {[%clk 0:00:13]}  Qe6 {[%clk 0:00:13]} 25. b6 {[%clk 0:00:09]}  a6 {[%clk 0:00:13]} 26. O-O {[%clk 0:00:08]}  Qc6 {[%clk 0:00:12]} 27. Qxc6+ {[%clk 0:00:08]}  bxc6 {[%clk 0:00:13]} 28. Rfe1 {[%clk 0:00:08]}  Rd5 {[%clk 0:00:13]} 29. Rac1 {[%clk 0:00:07]}  Re8 {[%clk 0:00:13]} 30. f3 {[%clk 0:00:06]}  Bf8 {[%clk 0:00:14]} 0-1


[Site "https://www.chess.com"]

[Event "Titled Tuesday Blitz November 29 Early 2022"]
[White "Kamsky, Gata"]
[Black "Ince, Taylan Ruzgar"]
[WhiteFideId "2000024"]
[BlackFideId "44513089"]
[WhiteElo "2666"]
[BlackElo "2147"]
[Result "1-0"]
[Round "03"]
[TimeControl "180+1"]
[Date "2022.11.30"]
[WhiteClock "0:00:39"]
[BlackClock "0:01:14"]

1. d4 {[%clk 0:03:00]}  Nf6 {[%clk 0:02:59]} 2. Bf4 {[%clk 0:02:55]}  g6 {[%clk 0:02:58]} 3. c3 {[%clk 0:02:53]}  Bg7 {[%clk 0:02:58]} 4. Nf3 {[%clk 0:02:47]}  O-O {[%clk 0:02:58]} 5. Nbd2 {[%clk 0:01:49]}  d5 {[%clk 0:02:56]} 6. e3 {[%clk 0:01:48]}  c5 {[%clk 0:02:56]} 7. h3 {[%clk 0:01:43]}  b6 {[%clk 0:02:56]} 8. Be2 {[%clk 0:01:42]}  Bb7 {[%clk 0:02:56]} 9. O-O {[%clk 0:01:42]}  Nc6 {[%clk 0:02:56]} 10. a4 {[%clk 0:01:39]}  Nd7 {[%clk 0:02:50]} 11. Qb3 {[%clk 0:01:39]}  Na5 {[%clk 0:02:40]} 12. Qa2 {[%clk 0:01:36]}  Rc8 {[%clk 0:02:29]} 13. b4 {[%clk 0:01:29]}  cxb4 {[%clk 0:02:27]} 14. cxb4 {[%clk 0:01:29]}  Nc6 {[%clk 0:02:27]} 15. Rab1 {[%clk 0:01:26]}  e6 {[%clk 0:02:24]} 16. a5 {[%clk 0:01:23]}  Nf6 {[%clk 0:02:07]} 17. a6 {[%clk 0:01:21]}  Ba8 {[%clk 0:02:06]} 18. b5 {[%clk 0:01:21]}  Na5 {[%clk 0:02:06]} 19. Rbc1 {[%clk 0:01:19]}  Qe7 {[%clk 0:02:04]} 20. Rc2 {[%clk 0:01:14]}  Ne4 {[%clk 0:02:00]} 21. Rfc1 {[%clk 0:01:13]}  Qd7 {[%clk 0:01:59]} 22. Rc7 {[%clk 0:01:12]}  Rxc7 {[%clk 0:01:43]} 23. Rxc7 {[%clk 0:01:11]}  Qd8 {[%clk 0:01:41]} 24. Qc2 {[%clk 0:01:08]}  Nd6 {[%clk 0:01:26]} 25. Rxa7 {[%clk 0:01:06]}  Ndc4 {[%clk 0:01:25]} 26. Ne5 {[%clk 0:00:57]}  Bxe5 {[%clk 0:01:25]} 27. Bxe5 {[%clk 0:00:52]}  f6 {[%clk 0:01:22]} 28. Bg3 {[%clk 0:00:50]}  e5 {[%clk 0:01:19]} 29. Nxc4 {[%clk 0:00:49]}  dxc4 {[%clk 0:01:17]} 30. Bxc4+ {[%clk 0:00:47]}  Kh8 {[%clk 0:01:15]} 31. dxe5 {[%clk 0:00:45]}  Qb8 {[%clk 0:01:14]} 32. Re7 {[%clk 0:00:39]} 1-0


[Site "https://www.chess.com"]

[Event "Titled Tuesday Blitz November 29 Early 2022"]
[White "Khandelwal, Ankush"]
[Black "Papp, Levente"]
[WhiteFideId "413470"]
[BlackFideId "751243"]
[WhiteElo "2271"]
[BlackElo "2380"]
[Result "0-1"]
[Round "03"]
[TimeControl "180+1"]
[Date "2022.11.30"]
[WhiteClock "0:00:04"]
[BlackClock "0:00:14"]

1. e4 {[%clk 0:03:00]}  e6 {[%clk 0:03:00]} 2. d4 {[%clk 0:03:00]}  d5 {[%clk 0:03:00]} 3. Nc3 {[%clk 0:03:00]}  Bb4 {[%clk 0:02:59]} 4. exd5 {[%clk 0:03:00]}  exd5 {[%clk 0:02:59]} 5. Bd3 {[%clk 0:03:00]}  Nc6 {[%clk 0:02:59]} 6. a3 {[%clk 0:03:00]}  Bxc3+ {[%clk 0:02:59]} 7. bxc3 {[%clk 0:03:01]}  Nge7 {[%clk 0:02:57]} 8. Nf3 {[%clk 0:03:01]}  O-O {[%clk 0:02:56]} 9. O-O {[%clk 0:03:01]}  Bf5 {[%clk 0:02:56]} 10. Re1 {[%clk 0:03:00]}  Qd7 {[%clk 0:02:54]} 11. Rb1 {[%clk 0:02:59]}  b6 {[%clk 0:02:50]} 12. h3 {[%clk 0:02:59]}  Rfe8 {[%clk 0:02:49]} 13. Bf4 {[%clk 0:02:57]}  f6 {[%clk 0:02:41]} 14. Bh2 {[%clk 0:02:51]}  Na5 {[%clk 0:02:39]} 15. Nh4 {[%clk 0:02:48]}  Bxd3 {[%clk 0:02:37]} 16. cxd3 {[%clk 0:02:49]}  Ng6 {[%clk 0:02:05]} 17. Nxg6 {[%clk 0:02:00]}  Rxe1+ {[%clk 0:02:03]} 18. Qxe1 {[%clk 0:01:59]}  hxg6 {[%clk 0:02:04]} 19. Qe3 {[%clk 0:01:56]}  Re8 {[%clk 0:02:01]} 20. Qg3 {[%clk 0:01:56]}  g5 {[%clk 0:01:30]} 21. Qg4 {[%clk 0:01:21]}  Qe7 {[%clk 0:01:08]} 22. f4 {[%clk 0:00:56]}  Qe3+ {[%clk 0:01:05]} 23. Kh1 {[%clk 0:00:56]}  Qxd3 {[%clk 0:01:05]} 24. Rd1 {[%clk 0:00:54]}  Qe4 {[%clk 0:00:52]} 25. fxg5 {[%clk 0:00:53]}  Qxg4 {[%clk 0:00:51]} 26. hxg4 {[%clk 0:00:54]}  fxg5 {[%clk 0:00:52]} 27. Bxc7 {[%clk 0:00:49]}  Nc4 {[%clk 0:00:45]} 28. a4 {[%clk 0:00:35]}  Re7 {[%clk 0:00:37]} 29. Bd8 {[%clk 0:00:25]}  Re3 {[%clk 0:00:31]} 30. Bxg5 {[%clk 0:00:19]}  Rxc3 {[%clk 0:00:31]} 31. Kh2 {[%clk 0:00:16]}  Nd6 {[%clk 0:00:22]} 32. a5 {[%clk 0:00:14]}  b5 {[%clk 0:00:20]} 33. Rf1 {[%clk 0:00:11]}  Ne4 {[%clk 0:00:20]} 34. Be7 {[%clk 0:00:11]}  Rc7 {[%clk 0:00:16]} 35. Rf8+ {[%clk 0:00:11]}  Kh7 {[%clk 0:00:16]} 36. Bb4 {[%clk 0:00:06]}  Rc4 {[%clk 0:00:16]} 37. Bc5 {[%clk 0:00:03]}  Nxc5 {[%clk 0:00:15]} 38. Rc8 {[%clk 0:00:03]}  Ne4 {[%clk 0:00:14]} 39. Rc5 {[%clk 0:00:04]}  Nxc5 {[%clk 0:00:14]} 0-1


[Site "https://www.chess.com"]

[Event "Titled Tuesday Blitz November 29 Early 2022"]
[White "Kosakowski, Jakub"]
[Black "Chernov, Mikhail"]
[WhiteFideId "1185080"]
[BlackFideId "24143170"]
[WhiteElo "2463"]
[BlackElo "2113"]
[Result "1-0"]
[Round "03"]
[TimeControl "180+1"]
[Date "2022.11.30"]
[WhiteClock "0:00:09"]
[BlackClock "0:00:09"]

1. d4 {[%clk 0:02:59]}  d5 {[%clk 0:02:59]} 2. c4 {[%clk 0:02:59]}  c6 {[%clk 0:02:57]} 3. Nf3 {[%clk 0:02:58]}  Nf6 {[%clk 0:02:58]} 4. Nbd2 {[%clk 0:02:58]}  c5 {[%clk 0:02:47]} 5. cxd5 {[%clk 0:02:48]}  cxd4 {[%clk 0:02:42]} 6. Qa4+ {[%clk 0:02:41]}  Qd7 {[%clk 0:02:30]} 7. Qxd7+ {[%clk 0:02:18]}  Bxd7 {[%clk 0:02:26]} 8. Nxd4 {[%clk 0:02:19]}  Nxd5 {[%clk 0:02:26]} 9. a3 {[%clk 0:02:18]}  e5 {[%clk 0:02:19]} 10. N4f3 {[%clk 0:02:10]}  Nc6 {[%clk 0:02:17]} 11. e4 {[%clk 0:02:07]}  Nc7 {[%clk 0:02:03]} 12. Nc4 {[%clk 0:02:04]}  f6 {[%clk 0:02:02]} 13. Be3 {[%clk 0:02:04]}  Ne6 {[%clk 0:01:16]} 14. Rd1 {[%clk 0:01:57]}  O-O-O {[%clk 0:01:10]} 15. Be2 {[%clk 0:01:52]}  Kc7 {[%clk 0:01:09]} 16. O-O {[%clk 0:01:51]}  Bc5 {[%clk 0:01:07]} 17. b4 {[%clk 0:01:45]}  Bd4 {[%clk 0:01:02]} 18. b5 {[%clk 0:01:43]}  Ne7 {[%clk 0:00:52]} 19. Nxd4 {[%clk 0:01:36]}  exd4 {[%clk 0:00:48]} 20. b6+ {[%clk 0:00:53]}  axb6 {[%clk 0:00:49]} 21. Bxd4 {[%clk 0:00:47]}  Nxd4 {[%clk 0:00:49]} 22. Rxd4 {[%clk 0:00:48]}  Bb5 {[%clk 0:00:32]} 23. Rxd8 {[%clk 0:00:31]}  Rxd8 {[%clk 0:00:33]} 24. Rc1 {[%clk 0:00:31]}  Nc6 {[%clk 0:00:27]} 25. f3 {[%clk 0:00:30]}  Bxc4 {[%clk 0:00:20]} 26. Bxc4 {[%clk 0:00:29]}  Rd2 {[%clk 0:00:20]} 27. f4 {[%clk 0:00:24]}  Kd6 {[%clk 0:00:19]} 28. Bd5 {[%clk 0:00:24]}  b5 {[%clk 0:00:10]} 29. Rb1 {[%clk 0:00:23]}  Kc5 {[%clk 0:00:10]} 30. h4 {[%clk 0:00:20]}  Nd4 {[%clk 0:00:10]} 31. Kh2 {[%clk 0:00:11]}  Ne2 {[%clk 0:00:10]} 32. Rf1 {[%clk 0:00:08]}  Kd4 {[%clk 0:00:07]} 33. Bxb7 {[%clk 0:00:08]}  Ke3 {[%clk 0:00:06]} 34. Rf3+ {[%clk 0:00:09]}  Kd4 {[%clk 0:00:06]} 35. h5 {[%clk 0:00:09]}  h6 {[%clk 0:00:05]} 36. Bc6 {[%clk 0:00:09]}  Rb2 {[%clk 0:00:05]} 37. Be8 {[%clk 0:00:05]}  Nc3 {[%clk 0:00:05]} 38. Bg6 {[%clk 0:00:04]}  Nxe4 {[%clk 0:00:05]} 39. Rf1 {[%clk 0:00:03]}  Nc3 {[%clk 0:00:03]} 40. Re1 {[%clk 0:00:03]}  Kc4 {[%clk 0:00:03]} 41. Re7 {[%clk 0:00:04]}  Kb3 {[%clk 0:00:03]} 42. Rxg7 {[%clk 0:00:04]}  Kxa3 {[%clk 0:00:04]} 43. Rf7 {[%clk 0:00:04]}  b4 {[%clk 0:00:04]} 44. Rxf6 {[%clk 0:00:05]}  b3 {[%clk 0:00:04]} 45. Ra6+ {[%clk 0:00:05]}  Kb4 {[%clk 0:00:05]} 46. f5 {[%clk 0:00:06]}  Rf2 {[%clk 0:00:04]} 47. f6 {[%clk 0:00:06]}  Nd5 {[%clk 0:00:04]} 48. f7 {[%clk 0:00:07]}  Ne3 {[%clk 0:00:04]} 49. Ra8 {[%clk 0:00:07]}  Rxg2+ {[%clk 0:00:05]} 50. Kh3 {[%clk 0:00:07]}  Rf2 {[%clk 0:00:05]} 51. f8=Q+ {[%clk 0:00:08]}  Rxf8 {[%clk 0:00:05]} 52. Rxf8 {[%clk 0:00:09]}  b2 {[%clk 0:00:06]} 53. Rb8+ {[%clk 0:00:09]}  Kc3 {[%clk 0:00:06]} 54. Kg3 {[%clk 0:00:10]}  Nc4 {[%clk 0:00:07]} 55. Kf4 {[%clk 0:00:08]}  Nd2 {[%clk 0:00:07]} 56. Ke5 {[%clk 0:00:09]}  Nc4+ {[%clk 0:00:07]} 57. Kf6 {[%clk 0:00:09]}  Nd2 {[%clk 0:00:08]} 58. Kg7 {[%clk 0:00:09]}  Nf3 {[%clk 0:00:08]} 59. Kxh6 {[%clk 0:00:09]}  Ne5 {[%clk 0:00:09]} 60. Kg7 {[%clk 0:00:10]}  Nc6 {[%clk 0:00:09]} 61. Rxb2 {[%clk 0:00:09]}  Kc4 {[%clk 0:00:09]} 62. h6 {[%clk 0:00:09]} 1-0


[Site "https://www.chess.com"]

[Event "Titled Tuesday Blitz November 29 Early 2022"]
[White "Kuchava, Ana"]
[Black "Miszler, Levente"]
[WhiteFideId "13605348"]
[BlackFideId "763276"]
[WhiteElo "2001"]
[BlackElo "2176"]
[Result "1-0"]
[Round "03"]
[TimeControl "180+1"]
[Date "2022.11.30"]
[WhiteClock "0:00:20"]
[BlackClock "0:00:08"]

1. d4 {[%clk 0:03:00]}  d5 {[%clk 0:02:58]} 2. Nf3 {[%clk 0:02:58]}  Nc6 {[%clk 0:02:50]} 3. c4 {[%clk 0:02:54]}  Bg4 {[%clk 0:02:41]} 4. e3 {[%clk 0:02:48]}  e5 {[%clk 0:02:26]} 5. Be2 {[%clk 0:02:39]}  exd4 {[%clk 0:02:16]} 6. exd4 {[%clk 0:02:09]}  dxc4 {[%clk 0:02:03]} 7. O-O {[%clk 0:02:06]}  Nf6 {[%clk 0:01:59]} 8. Nc3 {[%clk 0:01:57]}  Be7 {[%clk 0:01:55]} 9. h3 {[%clk 0:01:42]}  Bxf3 {[%clk 0:01:48]} 10. Bxf3 {[%clk 0:01:43]}  Nxd4 {[%clk 0:01:48]} 11. Bxb7 {[%clk 0:01:40]}  Rb8 {[%clk 0:01:47]} 12. Ba6 {[%clk 0:01:38]}  O-O {[%clk 0:01:35]} 13. Bxc4 {[%clk 0:01:36]}  Bc5 {[%clk 0:01:25]} 14. Be3 {[%clk 0:01:31]}  Qd6 {[%clk 0:01:20]} 15. Na4 {[%clk 0:01:16]}  Ne6 {[%clk 0:01:14]} 16. Nxc5 {[%clk 0:01:12]}  Nxc5 {[%clk 0:01:13]} 17. Rc1 {[%clk 0:00:57]}  Nce4 {[%clk 0:00:59]} 18. Qxd6 {[%clk 0:00:52]}  cxd6 {[%clk 0:00:57]} 19. b3 {[%clk 0:00:43]}  d5 {[%clk 0:00:56]} 20. Bd3 {[%clk 0:00:40]}  Rb7 {[%clk 0:00:56]} 21. f3 {[%clk 0:00:34]}  Nd6 {[%clk 0:00:41]} 22. Bc5 {[%clk 0:00:32]}  Rd7 {[%clk 0:00:36]} 23. Rfe1 {[%clk 0:00:32]}  h6 {[%clk 0:00:32]} 24. Kf2 {[%clk 0:00:31]}  Rc8 {[%clk 0:00:28]} 25. Bxd6 {[%clk 0:00:28]}  Rcd8 {[%clk 0:00:17]} 26. Be7 {[%clk 0:00:27]}  Re8 {[%clk 0:00:13]} 27. Bxf6 {[%clk 0:00:27]}  Rxe1 {[%clk 0:00:13]} 28. Kxe1 {[%clk 0:00:26]}  gxf6 {[%clk 0:00:13]} 29. Kd2 {[%clk 0:00:25]}  Kg7 {[%clk 0:00:13]} 30. Rc5 {[%clk 0:00:24]}  f5 {[%clk 0:00:13]} 31. Bxf5 {[%clk 0:00:23]}  Rd6 {[%clk 0:00:13]} 32. Kd3 {[%clk 0:00:23]}  Kf6 {[%clk 0:00:13]} 33. g4 {[%clk 0:00:22]}  Ke5 {[%clk 0:00:14]} 34. Rc8 {[%clk 0:00:21]}  Kf4 {[%clk 0:00:14]} 35. Rc7 {[%clk 0:00:19]}  f6 {[%clk 0:00:13]} 36. Rxa7 {[%clk 0:00:19]}  Kxf3 {[%clk 0:00:14]} 37. b4 {[%clk 0:00:18]}  Kg3 {[%clk 0:00:14]} 38. b5 {[%clk 0:00:19]}  Kxh3 {[%clk 0:00:14]} 39. Ra6 {[%clk 0:00:19]}  Rd8 {[%clk 0:00:13]} 40. b6 {[%clk 0:00:20]}  Kh4 {[%clk 0:00:11]} 41. b7 {[%clk 0:00:19]}  Rb8 {[%clk 0:00:10]} 42. Bc8 {[%clk 0:00:20]}  h5 {[%clk 0:00:08]} 43. gxh5 {[%clk 0:00:20]} 1-0


[Site "https://www.chess.com"]

[Event "Titled Tuesday Blitz November 29 Early 2022"]
[White "Kulkarni, Vikramaditya"]
[Black "Kozak, Antoni"]
[WhiteFideId "5009847"]
[BlackFideId "21832030"]
[WhiteElo "2273"]
[BlackElo "2447"]
[Result "0-1"]
[Round "03"]
[TimeControl "180+1"]
[Date "2022.11.30"]
[WhiteClock "0:00:01"]
[BlackClock "0:01:24"]

1. d4 {[%clk 0:03:00]}  e6 {[%clk 0:02:54]} 2. e4 {[%clk 0:02:59]}  b6 {[%clk 0:02:53]} 3. Nf3 {[%clk 0:02:57]}  Bb7 {[%clk 0:02:53]} 4. Bd3 {[%clk 0:02:56]}  Nf6 {[%clk 0:02:51]} 5. Qe2 {[%clk 0:02:56]}  c5 {[%clk 0:02:45]} 6. d5 {[%clk 0:02:54]}  d6 {[%clk 0:02:41]} 7. O-O {[%clk 0:02:48]}  e5 {[%clk 0:02:38]} 8. c4 {[%clk 0:02:41]}  Be7 {[%clk 0:02:38]} 9. Nc3 {[%clk 0:02:40]}  O-O {[%clk 0:02:39]} 10. Nh4 {[%clk 0:02:37]}  Nxd5 {[%clk 0:02:33]} 11. exd5 {[%clk 0:02:27]}  Bxh4 {[%clk 0:02:32]} 12. f4 {[%clk 0:02:27]}  Nd7 {[%clk 0:02:31]} 13. Ne4 {[%clk 0:02:19]}  Be7 {[%clk 0:02:19]} 14. Ng5 {[%clk 0:02:04]}  h6 {[%clk 0:02:15]} 15. Nh7 {[%clk 0:01:25]}  Re8 {[%clk 0:02:07]} 16. f5 {[%clk 0:01:24]}  f6 {[%clk 0:02:00]} 17. Qh5 {[%clk 0:01:14]}  Nf8 {[%clk 0:01:48]} 18. Nxf8 {[%clk 0:01:12]}  Bxf8 {[%clk 0:01:49]} 19. Be4 {[%clk 0:01:11]}  Qd7 {[%clk 0:01:47]} 20. Rf3 {[%clk 0:01:08]}  Qf7 {[%clk 0:01:47]} 21. Qg4 {[%clk 0:01:08]}  Kh7 {[%clk 0:01:47]} 22. Bd2 {[%clk 0:00:59]}  b5 {[%clk 0:01:48]} 23. cxb5 {[%clk 0:00:56]}  Bxd5 {[%clk 0:01:45]} 24. Qg6+ {[%clk 0:00:55]}  Kh8 {[%clk 0:01:46]} 25. Qxf7 {[%clk 0:00:37]}  Bxf7 {[%clk 0:01:45]} 26. Bxa8 {[%clk 0:00:37]}  Rxa8 {[%clk 0:01:45]} 27. b4 {[%clk 0:00:35]}  c4 {[%clk 0:01:45]} 28. Ra3 {[%clk 0:00:30]}  Bd5 {[%clk 0:01:38]} 29. Be3 {[%clk 0:00:26]}  Bb7 {[%clk 0:01:32]} 30. Rxa7 {[%clk 0:00:21]}  Rxa7 {[%clk 0:01:31]} 31. Bxa7 {[%clk 0:00:21]}  d5 {[%clk 0:01:32]} 32. Bc5 {[%clk 0:00:20]}  Kg8 {[%clk 0:01:31]} 33. a4 {[%clk 0:00:20]}  d4 {[%clk 0:01:31]} 34. a5 {[%clk 0:00:20]}  c3 {[%clk 0:01:30]} 35. a6 {[%clk 0:00:20]}  Be4 {[%clk 0:01:28]} 36. Kf1 {[%clk 0:00:12]}  d3 {[%clk 0:01:28]} 37. b6 {[%clk 0:00:10]}  d2 {[%clk 0:01:28]} 38. Ke2 {[%clk 0:00:09]}  Bd5 {[%clk 0:01:25]} 39. b7 {[%clk 0:00:06]}  Bc4+ {[%clk 0:01:26]} 40. Ke3 {[%clk 0:00:05]}  c2 {[%clk 0:01:23]} 41. Kxd2 {[%clk 0:00:03]}  Bxa6 {[%clk 0:01:23]} 42. b8=Q {[%clk 0:00:01]}  Kh7 {[%clk 0:01:24]} 43. Qxf8 {[%clk 0:00:01]}  c1=Q+ {[%clk 0:01:24]} 0-1


[Site "https://www.chess.com"]

[Event "Titled Tuesday Blitz November 29 Early 2022"]
[White "Kvaloy, Aksel Bu"]
[Black "Buksa, Nataliya"]
[WhiteFideId "1528815"]
[BlackFideId "14123622"]
[WhiteElo "2184"]
[BlackElo "2313"]
[Result "0-1"]
[Round "03"]
[TimeControl "180+1"]
[Date "2022.11.30"]
[WhiteClock "0:02:20"]
[BlackClock "0:02:30"]

1. d4 {[%clk 0:02:50]}  d5 {[%clk 0:02:59]} 2. c4 {[%clk 0:02:50]}  e6 {[%clk 0:02:59]} 3. Nf3 {[%clk 0:02:50]}  Nf6 {[%clk 0:03:00]} 4. g3 {[%clk 0:02:50]}  Bb4+ {[%clk 0:03:00]} 5. Bd2 {[%clk 0:02:49]}  Be7 {[%clk 0:03:00]} 6. Bg2 {[%clk 0:02:49]}  O-O {[%clk 0:03:01]} 7. O-O {[%clk 0:02:50]}  c6 {[%clk 0:03:02]} 8. Qc2 {[%clk 0:02:47]}  Nbd7 {[%clk 0:03:02]} 9. Bf4 {[%clk 0:02:47]}  a5 {[%clk 0:03:03]} 10. Nbd2 {[%clk 0:02:47]}  b5 {[%clk 0:03:02]} 11. b3 {[%clk 0:02:44]}  Nh5 {[%clk 0:02:53]} 12. Be3 {[%clk 0:02:35]}  f5 {[%clk 0:02:53]} 13. Ne5 {[%clk 0:02:33]}  Bb7 {[%clk 0:02:50]} 14. f4 {[%clk 0:02:29]}  Nhf6 {[%clk 0:02:49]} 15. Bf2 {[%clk 0:02:27]}  Nxe5 {[%clk 0:02:45]} 16. dxe5 {[%clk 0:02:27]}  Ne4 {[%clk 0:02:45]} 17. Nxe4 {[%clk 0:02:24]}  dxe4 {[%clk 0:02:44]} 18. Rfd1 {[%clk 0:02:24]}  Qc8 {[%clk 0:02:33]} 19. Rd8 {[%clk 0:02:20]}  Rxd8 {[%clk 0:02:30]} 0-1


[Site "https://www.chess.com"]